bitfinex/quotes_SOLUSD_20250531
["timestamp","ask_amount","ask_price","bid_price","bid_amount"]
[1748658132663,22.0145025,154.92,154.88,0.14216157]
[1748658134167,28.46965321,154.92,154.88,0.14216157]
[1748658135294,42.46818369,154.93,154.88,22.0145025]
[1748658135594,22.0145025,154.91,154.87,0.14216157]
[1748658135833,22.0145025,154.9,154.86,22.15666407]
[1748658135972,22.0145025,154.9,154.86,0.14216157]
[1748658136172,28.47055022,154.9,154.86,22.15666407]
[1748658136372,28.47055022,154.9,154.85,4.0]
[1748658136373,22.0145025,154.88,154.85,4.0]
[1748658136567,22.0145025,154.86,154.85,4.0]
[1748658136885,22.0145025,154.87,154.85,4.0]
[1748658137083,22.59549252,154.9,154.85,4.0]
[1748658137401,22.0145025,154.87,154.85,4.0]
[1748658138291,28.47169497,154.87,154.85,4.0]
[1748658138669,22.0145025,154.86,154.85,4.0]
[1748658140020,33.04012893,154.86,154.85,4.0]
[1748658140476,39.49757436,154.86,154.85,4.0]
[1748658141095,39.49757436,154.86,154.76,18.64964886]
[1748658141096,55.64118794,154.86,154.76,18.64964886]
[1748658141300,33.04012893,154.8,154.76,18.64964886]
[1748658141613,146.9,154.85,154.78,0.14216157]
[1748658141614,33.04012893,154.82,154.78,0.14216157]
[1748658141807,33.04012893,154.81,154.76,51.68977779]
[1748658141986,33.04012893,154.81,154.76,18.64964886]
[1748658142186,33.04012893,154.8,154.76,18.64964886]
[1748658142399,33.04012893,154.8,154.77,0.14216157]
[1748658142604,33.04012893,154.81,154.76,25.11117487]
[1748658142821,33.04012893,154.81,154.76,58.1513038]
[1748658142985,33.04012893,154.81,154.77,0.14216157]
[1748658143716,39.49968135,154.81,154.77,0.14216157]
[1748658143918,33.04012893,154.81,154.77,0.14216157]
[1748658144608,33.04012893,154.82,154.77,39.78563737]
[1748658145785,33.04012893,154.8,154.74,26.0]
[1748658146004,33.04012893,154.8,154.76,0.14216157]
[1748658146403,33.04012893,154.8,154.75,33.04012893]
[1748658146609,33.04012893,154.79,154.76,0.14216157]
[1748658147182,6.45979304,154.81,154.76,0.14216157]
[1748658147387,33.04012893,154.81,154.76,33.1822905]
[1748658148100,48.71878551,154.83,154.78,0.14216157]
[1748658148287,33.04012893,154.81,154.78,0.14216157]
[1748658149423,33.04012893,154.8,154.75,33.04012893]
[1748658149638,33.04012893,154.79,154.76,0.14216157]
[1748658150001,6.45954998,154.81,154.66,8.0881]
[1748658150002,26.0,154.76,154.66,8.0881]
[1748658150318,54.14,154.78,154.66,6.5247]
[1748658150319,33.04012893,154.69,154.66,6.5247]
[1748658150535,33.04012893,154.69,154.64,33.04012893]
[1748658150733,33.04012893,154.7,154.65,33.04012893]
[1748658150926,33.04012893,154.7,154.66,0.14216157]
[1748658151104,33.04012893,154.73,154.68,33.1822905]
[1748658151292,33.04012893,154.73,154.68,33.04012893]
[1748658151493,6.46203554,154.75,154.69,18.64964886]
[1748658151818,33.04012893,154.73,154.7,0.14216157]
[1748658152129,6.46203554,154.75,154.66,26.0]
[1748658152130,33.04012893,154.71,154.66,26.0]
[1748658152293,33.04012893,154.7,154.66,26.0]
[1748658152623,33.04012893,154.7,154.65,33.04012893]
[1748658152793,33.04012893,154.7,154.67,0.14216157]
[1748658152993,6.46454198,154.69,154.67,0.14216157]
[1748658153193,6.46454198,154.69,154.66,18.79181043]
[1748658153194,6.46454198,154.69,154.66,33.04012893]
[1748658153411,6.46454198,154.69,154.66,0.14216157]
[1748658153623,39.50467091,154.69,154.65,18.64964886]
[1748658153927,39.50467091,154.69,154.66,0.14216157]
[1748658155199,39.50467091,154.69,154.64,33.1822905]
[1748658156128,42.79293086,154.69,154.65,0.14216157]
[1748658156327,33.04012893,154.68,154.63,26.0]
[1748658156634,33.04012893,154.67,154.63,26.0]
[1748658156810,42.79293086,154.69,154.64,33.04012893]
[1748658157592,42.79293086,154.69,154.63,26.0]
[1748658157593,42.79293086,154.69,154.65,0.14216157]
[1748658157823,9.75280193,154.69,154.65,33.1822905]
[1748658158119,42.79293086,154.69,154.65,0.14216157]
[1748658158717,33.04012893,154.68,154.65,0.14216157]
[1748658159018,33.04012893,154.68,154.64,0.14216157]
[1748658159318,39.50523399,154.68,154.64,0.14216157]
[1748658160702,42.79296806,154.69,154.64,51.97410093]
[1748658161003,6.46245314,154.74,154.7,0.14216157]
[1748658161204,6.46203554,154.75,154.7,33.1822905]
[1748658161598,39.50216447,154.75,154.7,33.1822905]
[1748658162096,33.04012893,154.74,154.7,18.933972]
[1748658162305,33.04012893,154.73,154.68,33.1822905]
[1748658163104,39.50310712,154.73,154.68,33.1822905]
[1748658163607,6.46297819,154.73,154.68,0.14216157]
[1748658163826,6.46297819,154.73,154.68,33.1822905]
[1748658163827,39.50310712,154.73,154.68,33.1822905]
[1748658167950,28.51889454,154.73,154.68,22.19807792]
[1748658168428,22.05591635,154.72,154.68,0.14216157]
[1748658169234,22.05591635,154.7,154.65,33.91591635]
[1748658169433,28.52069256,154.69,154.62,14.28840515]
[1748658169737,22.05591635,154.68,154.64,18.64964886]
[1748658169910,28.52069256,154.69,154.65,0.14216157]
[1748658170235,28.52069256,154.69,154.64,40.70556521]
[1748658170625,28.52069256,154.69,154.65,0.14216157]
[1748658171631,6.46477621,154.69,154.65,0.14216157]
[1748658171834,28.52069256,154.69,154.65,0.14216157]
[1748658172039,39.56910132,154.69,154.65,0.14216157]
[1748658173711,6.46477621,154.69,154.65,0.14216157]
[1748658173912,39.56910132,154.69,154.65,0.14216157]
[1748658174338,6.46477621,154.69,154.65,33.24648668]
[1748658177354,33.10432511,154.7,154.65,33.24648668]
[1748658178139,33.10432511,154.69,154.65,33.24648668]
[1748658179331,39.56916067,154.69,154.65,0.14216157]
[1748658179644,39.56916067,154.69,154.65,33.24648668]
[1748658179817,33.10432511,154.67,154.62,26.0]
[1748658180017,33.10432511,154.66,154.62,26.0]
[1748658180642,33.10432511,154.64,154.6,44.96432511]
[1748658181229,39.57130497,154.64,154.6,11.86]
[1748658181437,33.10432511,154.63,154.59,51.75397397]
[1748658181742,39.57130497,154.64,154.6,33.10432511]
[1748658183657,39.57130497,154.64,154.6,0.14216157]
[1748658183854,33.10432511,154.63,154.6,0.14216157]
[1748658184031,33.10432511,154.61,154.56,18.64964886]
[1748658184222,33.10432511,154.6,154.56,18.64964886]
[1748658184619,33.10432511,154.6,154.55,33.10432511]
[1748658184620,33.10432511,154.59,154.54,51.75397397]
[1748658185022,33.10432511,154.59,154.55,33.10432511]
[1748658185220,39.572259,154.61,154.57,33.10432511]
[1748658186352,6.46705037,154.63,154.57,33.10432511]
[1748658186554,33.10432511,154.61,154.57,33.10432511]
[1748658186761,33.10432511,154.61,154.56,0.28432314]
[1748658186964,33.10432511,154.61,154.57,33.10432511]
[1748658187257,33.10432511,154.61,154.56,33.38864825]
[1748658187428,39.57255326,154.61,154.56,33.38864825]
[1748658187631,39.57255326,154.61,154.56,0.28432314]
[1748658187930,39.57255326,154.61,154.56,33.38864825]
[1748658190063,33.10432511,154.6,154.56,0.28432314]
[1748658190262,33.10432511,154.61,154.56,39.85860443]
[1748658190632,33.10432511,154.61,154.56,33.38864825]
[1748658191239,33.10432511,154.6,154.56,0.14216157]
[1748658192050,6.46872372,154.59,154.56,0.14216157]
[1748658192366,6.46872372,154.59,154.53,26.0]
[1748658192535,28.56188457,154.59,154.54,22.09316085]
[1748658194349,25.009872,154.66,154.54,22.09316085]
[1748658194350,4.8729351,154.75,154.62,0.28432314]
[1748658194540,22.09316085,154.69,154.64,0.14216157]
[1748658194744,4.8729351,154.75,154.64,0.14216157]
[1748658194745,26.0,154.73,154.64,0.14216157]
[1748658195037,22.09316085,154.71,154.65,22.09316085]
[1748658195630,26.0,154.73,154.65,22.09316085]
[1748658195631,22.09316085,154.7,154.65,22.09316085]
[1748658195895,26.0,154.73,154.65,22.09316085]
[1748658196048,32.46313663,154.73,154.66,22.23532242]
[1748658196241,4.8729351,154.75,154.68,0.14216157]
[1748658196562,3.2560351,154.75,154.7,22.09316085]
[1748658196739,42.16,154.77,154.7,22.09316085]
[1748658196740,22.09316085,154.76,154.7,22.09316085]
[1748658197684,22.09316085,154.75,154.68,0.14216157]
[1748658197843,22.09316085,154.7,154.66,30.59181043]
[1748658198157,22.09316085,154.7,154.66,11.8]
[1748658198334,22.09316085,154.69,154.64,54.55977947]
[1748658198535,22.09316085,154.7,154.65,22.09316085]
[1748658199467,26.0,154.74,154.65,22.09316085]
[1748658199468,146.9,154.72,154.65,28.55921421]
[1748658199631,22.09316085,154.7,154.65,28.55921421]
[1748658200368,22.09316085,154.7,154.66,22.09316085]
[1748658200540,146.9,154.72,154.67,22.23532242]
[1748658200742,168.99316085,154.72,154.67,22.23532242]
[1748658201245,168.99316085,154.72,154.67,22.09316085]
[1748658201451,22.09316085,154.71,154.66,22.09316085]
[1748658201665,22.09316085,154.71,154.66,28.55889699]
[1748658201860,28.55693587,154.71,154.66,22.09316085]
[1748658202038,22.09316085,154.71,154.66,22.09316085]
[1748658202356,22.09316085,154.71,154.66,0.14216157]
[1748658202537,22.09316085,154.71,154.66,22.23532242]
[1748658203133,22.09316085,154.71,154.66,28.70106281]
[1748658204261,153.36340003,154.72,154.66,28.70106281]
[1748658204471,22.09316085,154.71,154.66,28.70106281]
[1748658205467,146.9,154.72,154.66,28.70106281]
[1748658205674,22.09316085,154.71,154.66,28.70106281]
[1748658205850,146.9,154.72,154.66,28.70106281]
[1748658206051,146.9,154.72,154.67,22.09316085]
[1748658206281,175.45659783,154.72,154.67,22.09316085]
[1748658206465,168.99316085,154.72,154.67,28.55846059]
[1748658207865,146.9,154.72,154.68,22.09316085]
[1748658208064,153.36328946,154.72,154.68,22.09316085]
[1748658208446,146.9,154.72,154.68,22.09316085]
[1748658209068,153.36330561,154.72,154.68,22.09316085]
[1748658209268,146.9,154.72,154.68,28.55810695]
[1748658210068,146.9,154.72,154.67,28.55841716]
[1748658210264,153.36342678,154.72,154.67,22.09316085]
[1748658210466,146.9,154.72,154.67,28.55853136]
[1748658211661,153.3633015,154.72,154.67,28.55853136]
[1748658212373,153.3633015,154.72,154.67,22.09316085]
[1748658213271,175.45646235,154.72,154.66,6.60786239]
[1748658213475,175.45646235,154.72,154.67,22.09316085]
[1748658213774,22.09316085,154.71,154.66,22.23532242]
[1748658213973,22.09316085,154.71,154.64,44.64964886]
[1748658214280,153.3633015,154.72,154.65,22.09316085]
[1748658214281,6.46454198,154.69,154.65,22.09316085]
[1748658214474,6.46454198,154.69,154.66,22.09316085]
[1748658214862,22.09316085,154.71,154.66,22.09316085]
[1748658215171,146.9,154.72,154.67,22.09316085]
[1748658215380,168.99316085,154.72,154.67,22.09316085]
[1748658216259,6.46380506,154.71,154.67,22.09316085]
[1748658216967,146.9,154.72,154.68,22.09316085]
[1748658217168,146.9,154.72,154.69,22.09316085]
[1748658217481,146.9,154.72,154.7,22.09316085]
[1748658217659,146.9,154.72,154.69,22.09316085]
[1748658218258,146.9,154.72,154.7,22.09316085]
[1748658218466,146.9,154.72,154.69,22.09316085]
[1748658218970,146.9,154.72,154.7,22.09316085]
[1748658219477,146.9,154.72,154.68,6.60704096]
[1748658219478,146.9,154.72,154.69,22.09316085]
[1748658221189,28.55593406,154.74,154.69,22.09316085]
[1748658222500,22.09316085,154.7,154.62,8.2711]
[1748658222791,22.09316085,154.7,154.58,8.04954398]
[1748658222792,22.09316085,154.65,154.58,8.04954398]
[1748658222994,22.09316085,154.65,154.6,22.09316085]
[1748658223365,22.09316085,154.66,154.61,22.09316085]
[1748658223784,6.46621403,154.65,154.61,22.09316085]
[1748658225797,6.4653779,154.67,154.62,22.09316085]
[1748658226082,28.55853875,154.67,154.62,22.09316085]
[1748658226281,6.4653779,154.67,154.63,22.09316085]
[1748658226686,153.36506788,154.68,154.64,22.09316085]
[1748658226870,153.36506788,154.68,154.66,22.09316085]
[1748658226871,146.9,154.68,154.66,22.09316085]
[1748658227666,6.46397831,154.71,154.67,22.09316085]
[1748658227867,6.46397831,154.71,154.65,12.46863126]
[1748658228180,6.46397831,154.71,154.67,22.09316085]
[1748658231477,28.55713916,154.71,154.66,22.23532242]
[1748658232000,6.46397831,154.71,154.67,22.09316085]
[1748658232380,28.55713916,154.71,154.66,22.09316085]
[1748658234395,22.09316085,154.68,154.63,0.14216157]
[1748658234691,22.62324403,154.71,154.62,22.09316085]
[1748658234692,22.09316085,154.67,154.62,22.09316085]
[1748658236402,6.46579593,154.66,154.62,22.09316085]
[1748658238904,6.46579593,154.66,154.61,6.3824]
[1748658239194,22.09316085,154.68,154.63,22.09316085]
[1748658239397,22.09316085,154.69,154.64,22.23532242]
[1748658239606,154.86992856,154.7,154.66,22.09316085]
[1748658239607,146.9,154.7,154.66,22.09316085]
[1748658239910,146.9,154.7,154.68,22.09316085]
[1748658240605,146.9,154.7,154.69,22.09316085]
[1748658240774,146.9,154.7,154.68,22.09316085]
[1748658240979,146.9,154.7,154.66,22.09316085]
[1748658241177,175.45743345,154.7,154.65,22.09316085]
[1748658241376,22.09316085,154.69,154.65,0.14216157]
[1748658241798,22.09316085,154.69,154.64,22.09316085]
[1748658243196,22.09316085,154.69,154.63,11.76]
[1748658243197,6.46495991,154.68,154.63,11.76]
[1748658243498,6.46495991,154.68,154.64,22.09316085]
[1748658244875,6.46454198,154.69,154.64,22.09316085]
[1748658245101,28.55770283,154.69,154.64,22.09316085]
[1748658246174,22.09316085,154.67,154.63,11.76]
[1748658246595,22.09316085,154.67,154.63,0.14216157]
[1748658246777,22.09316085,154.68,154.64,22.09316085]
[1748658247176,28.55770283,154.69,154.64,22.09316085]
[1748658247374,22.09316085,154.68,154.63,22.23532242]
[1748658248178,22.09316085,154.66,154.61,47.12520971]
[1748658248424,22.09316085,154.66,154.62,0.14216157]
[1748658249197,28.55917607,154.66,154.62,0.14216157]
[1748658249394,28.55917607,154.66,154.6,27.5687]
[1748658249593,22.09316085,154.64,154.59,22.09316085]
[1748658249793,22.09316085,154.63,154.58,52.44280971]
[1748658250682,22.09316085,154.62,154.58,11.7]
[1748658250897,146.9,154.65,154.58,22.23532242]
[1748658251102,22.09316085,154.63,154.58,22.23532242]
[1748658251283,28.56056096,154.63,154.58,22.23532242]
[1748658251805,6.46740011,154.63,154.58,22.23532242]
[1748658251992,28.56056096,154.63,154.58,22.23532242]
[1748658252388,22.09316085,154.62,154.56,20.30544886]
[1748658252590,22.09316085,154.59,154.53,39.87366085]
[1748658252792,146.9,154.61,154.53,39.87366085]
[1748658252793,22.09316085,154.58,154.53,39.87366085]
[1748658252988,22.09316085,154.58,154.54,0.14216157]
[1748658253188,22.09316085,154.58,154.53,39.87366085]
[1748658253416,6.46956071,154.57,154.53,39.87366085]
[1748658253712,28.56272156,154.57,154.53,17.7805]
[1748658254090,31.85893119,154.57,154.53,17.7805]
[1748658254797,31.85893119,154.57,154.53,6.0805]
[1748658255404,25.38937048,154.57,154.53,6.0805]
[1748658256815,25.38937048,154.57,154.53,12.55172093]
[1748658257111,175.46115458,154.61,154.56,0.14216157]
[1748658257317,22.09316085,154.59,154.53,60.64488178]
[1748658257613,156.55033807,154.61,154.54,0.14216157]
[1748658257915,22.09316085,154.59,154.54,22.23532242]
[1748658258218,156.55033807,154.61,154.53,28.17366085]
[1748658258219,22.09316085,154.58,154.53,28.17366085]
[1748658258810,22.09316085,154.59,154.53,28.17366085]
[1748658259113,6.46914219,154.58,154.53,28.17366085]
[1748658260205,28.56230304,154.58,154.53,28.17366085]
[1748658260598,6.46914219,154.58,154.53,28.17366085]
[1748658261812,28.56158068,154.6,154.55,22.09316085]
[1748658262112,22.09316085,154.59,154.54,22.23532242]
[1748658262319,22.09316085,154.58,154.54,0.14216157]
[1748658262814,22.09316085,154.59,154.54,22.23532242]
[1748658263313,22.09316085,154.58,154.52,23.67086085]
[1748658263498,22.09316085,154.57,154.53,0.14216157]
[1748658263699,22.09316085,154.55,154.5,6.425]
[1748658263897,22.09316085,154.53,154.48,13.2044]
[1748658264105,22.09316085,154.52,154.48,11.7]
[1748658264311,22.09316085,154.52,154.47,54.56689261]
[1748658264508,22.09316085,154.53,154.48,22.09316085]
[1748658264707,22.09316085,154.53,154.47,6.47373176]
[1748658264920,22.09316085,154.53,154.48,22.09316085]
[1748658265293,22.09316085,154.53,154.48,28.56640621]
[1748658265689,28.56441908,154.53,154.48,28.56640621]
[1748658265894,22.09316085,154.52,154.48,0.14216157]
[1748658266119,22.09316085,154.5,154.44,1.5044]
[1748658266325,6.47125823,154.53,154.43,11.72]
[1748658266326,22.09316085,154.47,154.43,11.72]
[1748658266504,53.72,154.5,154.38,11.72]
[1748658266832,22.09316085,154.46,154.42,0.14216157]
[1748658267001,22.09316085,154.46,154.4,18.64964886]
[1748658267203,22.09316085,154.46,154.41,22.09316085]
[1748658267601,22.09316085,154.46,154.42,0.14216157]
[1748658268526,28.567117,154.47,154.42,22.23532242]
[1748658268737,22.09316085,154.47,154.42,0.14216157]
[1748658269035,210.99316085,154.49,154.44,22.09316085]
[1748658269207,217.46621933,154.49,154.44,22.09316085]
[1748658269812,210.99316085,154.49,154.44,22.09316085]
[1748658269993,22.09316085,154.47,154.41,41.02713285]
[1748658270195,195.37296062,154.49,154.41,41.02713285]
[1748658270196,22.09316085,154.46,154.41,22.09316085]
[1748658270624,22.09316085,154.47,154.42,22.09316085]
[1748658271429,28.56720106,154.47,154.42,22.09316085]
[1748658271612,28.56720106,154.47,154.4,6.47656951]
[1748658271613,22.09316085,154.46,154.41,0.14216157]
[1748658271799,22.09316085,154.46,154.41,22.23532242]
[1748658272407,28.56720106,154.47,154.42,22.09316085]
[1748658273003,6.47404021,154.47,154.42,22.09316085]
[1748658273227,22.09316085,154.47,154.42,22.09316085]
[1748658274005,22.09316085,154.44,154.39,44.79181043]
[1748658274211,22.09316085,154.45,154.4,22.23532242]
[1748658274411,22.65665458,154.48,154.39,22.09316085]
[1748658274412,22.09316085,154.44,154.39,22.09316085]
[1748658274605,22.09316085,154.43,154.36,33.05732084]
[1748658274825,22.09316085,154.43,154.39,22.09316085]
[1748658275622,146.9,154.47,154.4,22.09316085]
[1748658275939,153.37416806,154.46,154.42,22.09316085]
[1748658276601,146.9,154.46,154.42,22.09316085]
[1748658276806,26.0,154.49,154.44,22.09316085]
[1748658276807,48.47300068,154.49,154.44,22.09316085]
[1748658277031,22.09316085,154.48,154.44,22.09316085]
[1748658277833,28.56668484,154.48,154.44,22.09316085]
[1748658278046,28.56668484,154.48,154.42,18.933972]
[1748658278218,28.56668484,154.48,154.41,28.56906164]
[1748658278219,22.09316085,154.46,154.41,28.56906164]
[1748658279828,22.09316085,154.45,154.41,0.14216157]
[1748658280130,22.09316085,154.45,154.41,22.23532242]
[1748658280335,6.47428791,154.46,154.41,22.23532242]
[1748658280336,28.56744876,154.46,154.41,22.23532242]
[1748658280938,28.56744876,154.46,154.42,22.09316085]
[1748658282322,28.56744876,154.46,154.41,22.23532242]
[1748658282528,22.09316085,154.45,154.41,0.14216157]
[1748658282719,22.09316085,154.44,154.39,48.09316085]
[1748658283725,22.09316085,154.44,154.4,22.09316085]
[1748658284643,22.09316085,154.44,154.39,48.09316085]
[1748658284842,28.56819262,154.44,154.39,54.56996376]
[1748658285045,28.56819262,154.44,154.39,48.09316085]
[1748658285646,28.56819262,154.44,154.39,54.57018744]
[1748658286135,22.09316085,154.44,154.39,54.57018744]
[1748658286342,22.09316085,154.44,154.39,32.47702659]
[1748658286511,28.568215,154.44,154.39,54.57018744]
[1748658287242,28.56816804,154.44,154.39,54.57018744]
[1748658287753,22.09316085,154.44,154.39,54.57018744]
[1748658287920,146.9,154.46,154.41,22.09316085]
[1748658287921,168.99316085,154.46,154.41,22.09316085]
[1748658288114,175.46737152,154.46,154.41,22.09316085]
[1748658288620,168.99316085,154.46,154.41,28.56938632]
[1748658288814,175.46737741,154.46,154.41,22.09316085]
[1748658289221,22.09316085,154.44,154.39,48.09316085]
[1748658290761,22.09316085,154.44,154.39,54.57016811]
[1748658291353,28.56823873,154.44,154.39,54.57016811]
[1748658292373,22.09316085,154.44,154.39,54.57016811]
[1748658293244,28.56825481,154.44,154.39,54.57016811]
[1748658293863,6.47466022,154.45,154.4,22.09316085]
[1748658294176,28.56782107,154.45,154.4,22.09316085]
[1748658295674,22.09316085,154.45,154.4,28.56967744]
[1748658295992,22.09316085,154.45,154.4,6.47651659]
[1748658296159,22.09316085,154.45,154.4,28.56967744]
[1748658298553,28.56791102,154.45,154.4,28.56967744]
[1748658298877,28.56791102,154.45,154.4,22.09316085]
[1748658299861,28.56791102,154.45,154.4,28.56983511]
[1748658300774,28.56791102,154.45,154.4,0.14216157]
[1748658301015,22.09316085,154.43,154.39,26.0]
[1748658302890,28.56845564,154.44,154.39,48.09316085]
[1748658303458,28.56845564,154.44,154.39,26.0]
[1748658303660,28.56845564,154.44,154.39,48.09316085]
[1748658304464,28.56845564,154.44,154.39,54.57017858]
[1748658304871,28.56845564,154.44,154.39,48.09316085]
[1748658305071,28.56845564,154.44,154.37,18.933972]
[1748658305269,28.56845564,154.44,154.38,18.933972]
[1748658305270,22.09316085,154.42,154.38,18.933972]
[1748658306165,188.84,154.46,154.4,22.09316085]
[1748658306467,22.09316085,154.45,154.41,22.23532242]
[1748658306865,22.09316085,154.45,154.41,0.14216157]
[1748658307590,22.09316085,154.44,154.41,0.14216157]
[1748658307973,153.37426024,154.46,154.41,0.14216157]
[1748658308292,22.09316085,154.44,154.39,28.56994436]
[1748658308591,22.09316085,154.43,154.39,22.09316085]
[1748658308997,22.09316085,154.43,154.39,0.14216157]
[1748658309986,6.47458724,154.45,154.34,16.19720825]
[1748658309987,22.09316085,154.41,154.36,26.08770839]
[1748658310192,22.09316085,154.4,154.36,19.6094]
[1748658310377,22.09316085,154.38,154.34,22.09316085]
[1748658310585,22.09316085,154.37,154.32,22.09316085]
[1748658310971,22.09316085,154.37,154.32,28.57308525]
[1748658311167,3.28181467,154.39,154.34,22.09316085]
[1748658311372,22.09316085,154.39,154.34,22.09316085]
[1748658311674,22.09316085,154.41,154.36,22.09316085]
[1748658311977,188.82,154.42,154.38,22.23532242]
[1748658311978,146.9,154.42,154.38,22.23532242]
[1748658312285,3.25170924,154.45,154.36,16.19555414]
[1748658312472,22.09316085,154.44,154.39,22.09316085]
[1748658312907,22.09316085,154.44,154.37,0.28432314]
[1748658312908,22.09316085,154.45,154.4,22.23532242]
[1748658313975,22.09316085,154.44,154.4,0.14216157]
[1748658314999,6.47427777,154.46,154.41,22.09316085]
[1748658315177,22.09316085,154.45,154.4,22.37748399]
[1748658315588,22.09316085,154.45,154.4,28.85407381]
[1748658316390,22.09316085,154.45,154.4,22.37748399]
[1748658316584,22.09316085,154.45,154.4,28.85409544]
[1748658317302,22.09316085,154.45,154.4,6.76093459]
[1748658317479,6.47427777,154.46,154.4,28.85409544]
[1748658317680,22.09316085,154.46,154.42,0.14216157]
[1748658318385,22.09316085,154.51,154.47,0.14216157]
[1748658318701,153.37203463,154.52,154.47,0.14216157]
[1748658318702,146.9,154.52,154.49,0.14216157]
[1748658318905,22.09316085,154.53,154.49,0.14216157]
[1748658319205,6.47141455,154.53,154.48,0.14216157]
[1748658319519,22.09316085,154.52,154.48,0.14216157]
[1748658321421,22.09316085,154.52,154.45,41.9]
[1748658321422,22.09316085,154.49,154.43,60.52964886]
[1748658321589,22.09316085,154.49,154.44,54.56811324]
[1748658321785,22.09316085,154.49,154.45,0.14216157]
[1748658322223,22.09316085,154.5,154.45,22.23532242]
[1748658323085,28.56607171,154.49,154.44,22.09316085]
[1748658323416,22.09316085,154.48,154.43,22.09316085]
[1748658323624,28.56607171,154.49,154.44,22.09316085]
[1748658323790,22.09316085,154.49,154.45,22.09316085]
[1748658325021,22.09316085,154.49,154.44,22.09316085]
[1748658325022,28.56642995,154.49,154.44,22.09316085]
[1748658327796,41.88,154.51,154.45,0.14216157]
[1748658328000,1.5897,154.52,154.45,0.14216157]
[1748658328001,22.09316085,154.5,154.45,22.09316085]
[1748658328905,28.56594577,154.5,154.45,22.09316085]
[1748658331588,6.472073,154.51,154.45,22.09316085]
[1748658331808,22.09316085,154.5,154.45,22.09316085]
[1748658332088,22.09316085,154.51,154.46,0.14216157]
[1748658332622,22.09316085,154.51,154.46,22.23532242]
[1748658332803,28.56493291,154.52,154.47,22.09316085]
[1748658333000,225.89675538,154.54,154.49,22.09316085]
[1748658333190,184.03675538,154.54,154.49,22.09316085]
[1748658333727,190.50766435,154.54,154.49,22.09316085]
[1748658333895,22.09316085,154.53,154.48,40.88497128]
[1748658334707,168.4145035,154.54,154.5,0.14216157]
[1748658334708,180.82474969,154.54,154.5,0.14216157]
[1748658334908,187.29564397,154.54,154.5,0.14216157]
[1748658335113,180.82474969,154.54,154.5,0.14216157]
[1748658335303,187.29567539,154.54,154.5,0.14216157]
[1748658336497,180.82474969,154.54,154.5,0.14216157]
[1748658337215,146.9,154.54,154.5,22.23532242]
[1748658337398,168.99316085,154.54,154.5,22.23532242]
[1748658338904,146.9,154.54,154.5,28.7076059]
[1748658339102,146.9,154.54,154.53,22.23532242]
[1748658339301,153.36863334,154.6,154.54,18.933972]
[1748658339514,153.36863334,154.6,154.56,22.09316085]
[1748658340097,175.46179419,154.6,154.56,22.09316085]
[1748658340913,22.09316085,154.57,154.49,14.3713344]
[1748658341116,22.09316085,154.56,154.51,22.09316085]
[1748658341599,41.82,154.58,154.49,26.54814886]
[1748658341600,22.09316085,154.57,154.52,22.09316085]
[1748658341811,63.91316085,154.58,154.53,22.09316085]
[1748658342431,70.38238673,154.58,154.54,22.23532242]
[1748658343235,70.38238673,154.58,154.54,0.14216157]
[1748658344220,70.38238673,154.58,154.53,22.09316085]
[1748658344425,6.47039792,154.55,154.51,22.09316085]
[1748658345329,6.47039792,154.55,154.49,59.30526143]
[1748658345330,22.09316085,154.54,154.5,0.14216157]
[1748658345519,22.09316085,154.54,154.5,22.23532242]
[1748658346531,6.47039792,154.55,154.5,22.23532242]
[1748658346742,28.56355877,154.55,154.51,22.09316085]
[1748658347119,28.56355877,154.55,154.5,22.23532242]
[1748658347515,6.46956071,154.57,154.52,0.14216157]
[1748658347718,22.09316085,154.56,154.52,0.14216157]
[1748658347941,6.46956071,154.57,154.52,0.14216157]
[1748658347942,6.46956071,154.57,154.52,22.23532242]
[1748658348114,28.56272156,154.57,154.52,22.23532242]
[1748658348317,28.56272156,154.57,154.49,7.8985]
[1748658348318,22.09316085,154.54,154.49,7.8985]
[1748658348518,6.47123535,154.53,154.49,7.8985]
[1748658348934,6.47123535,154.53,154.49,29.99166085]
[1748658349250,146.9,154.56,154.49,29.99166085]
[1748658349251,175.46352064,154.56,154.51,22.09316085]
[1748658349446,175.46352064,154.56,154.52,22.23532242]
[1748658349447,146.9,154.56,154.52,22.23532242]
[1748658350654,175.46321983,154.56,154.5,18.79181043]
[1748658350839,22.09316085,154.55,154.51,0.14216157]
[1748658351033,175.46321983,154.56,154.51,22.23532242]
[1748658353564,175.46321983,154.56,154.49,6.2612]
[1748658353565,22.09316085,154.54,154.49,6.2612]
[1748658353742,22.09316085,154.53,154.5,0.14216157]
[1748658354050,22.09316085,154.51,154.46,40.74280971]
[1748658354251,22.09316085,154.5,154.45,7.7582]
[1748658354454,22.09316085,154.49,154.44,22.09316085]
[1748658354744,22.09316085,154.5,154.45,22.09316085]
[1748658355618,41.78,154.52,154.44,41.02713285]
[1748658355619,28.56607171,154.49,154.44,41.02713285]